bitfinex-derivatives/quotes_BTCF0:USTF0_20250422
["timestamp","ask_amount","ask_price","bid_price","bid_amount"]
[1745291769656,0.6665077,87943.0,87942.0,0.11795821]
[1745291772060,0.6665077,87943.0,87942.0,0.16185821]
[1745291772355,0.1137193,87934.0,87933.0,0.1137206]
[1745291772655,0.4745193,87934.0,87933.0,0.1137206]
[1745291772858,0.5158193,87934.0,87933.0,0.2009206]
[1745291773155,0.7078193,87934.0,87933.0,0.2009206]
[1745291773350,0.7532193,87934.0,87933.0,0.2009206]
[1745291773548,0.7532193,87934.0,87933.0,0.2039206]
[1745291774253,0.7532193,87934.0,87933.0,0.0902]
[1745291774455,0.7532193,87934.0,87933.0,0.0912]
[1745291778852,0.7532193,87934.0,87933.0,0.2049206]
[1745291779250,0.37066156,87943.0,87933.0,0.3186446]
[1745291779251,0.3608,87943.0,87933.0,0.3186446]
[1745291779455,0.3608,87943.0,87942.0,0.113709]
[1745291779657,0.07652,87956.0,87947.0,0.1137025]
[1745291779961,0.1902109,87956.0,87955.0,0.1136922]
[1745291780160,0.07652,87956.0,87955.0,0.1136922]
[1745291780357,0.1902109,87956.0,87955.0,0.1136922]
[1745291780546,0.1136909,87956.0,87955.0,0.1126922]
[1745291780751,0.1136909,87956.0,87955.0,0.1545922]
[1745291780950,0.1136909,87956.0,87955.0,0.1994922]
[1745291781148,0.1146909,87956.0,87955.0,0.1994922]
[1745291781553,0.1166909,87956.0,87955.0,0.1994922]
[1745291782556,0.003,87956.0,87955.0,0.1994922]
[1745291782759,0.1166909,87956.0,87955.0,0.1994922]
[1745291783655,0.1156909,87956.0,87955.0,0.1994922]
[1745291783958,0.002,87956.0,87955.0,0.1994922]
[1745291786160,0.00017051,87959.0,87958.0,0.1136883]
[1745291786449,0.00017051,87959.0,87958.0,0.4744883]
[1745291786649,0.00017051,87959.0,87958.0,0.58817629]
[1745291787254,0.00217051,87959.0,87958.0,0.58817629]
[1745291787457,0.00317051,87959.0,87958.0,0.58817629]
[1745291789159,0.00317051,87959.0,87958.0,0.4744883]
[1745291790461,0.11685751,87959.0,87958.0,0.3608]
[1745291790661,0.11685751,87959.0,87958.0,0.1136883]
[1745291790966,0.11685751,87959.0,87958.0,0.1137683]
[1745291791172,0.39715751,87959.0,87958.0,0.1137683]
[1745291791956,0.19517051,87959.0,87958.0,0.1137683]
[1745291792156,0.00317051,87959.0,87958.0,0.1137683]
[1745291792363,0.00317051,87959.0,87958.0,0.1978683]
[1745291793063,0.04657051,87959.0,87958.0,0.1978683]
[1745291794060,0.00317051,87959.0,87958.0,0.1978683]
[1745291795062,0.00317051,87959.0,87958.0,0.8886683]
[1745291795456,0.00317051,87959.0,87958.0,0.7586683]
[1745291795852,0.00317051,87959.0,87958.0,0.5586683]
[1745291799754,0.0449,87967.0,87966.0,0.113678]
[1745291800064,0.1136545,87986.0,87985.0,0.1136534]
[1745291800266,0.1136545,87986.0,87985.0,0.2273054]
[1745291800465,0.1136545,87986.0,87985.0,0.113652]
[1745291801161,0.3056545,87986.0,87985.0,0.113652]
[1745291801366,0.3056545,87986.0,87985.0,0.111652]
[1745291801759,0.3944545,87986.0,87985.0,0.111652]
[1745291802256,0.3944545,87986.0,87985.0,0.110652]
[1745291802453,0.2808,87986.0,87985.0,0.110652]
[1745291802764,0.3944521,87986.0,87985.0,0.110652]
[1745291802964,0.2828,87986.0,87985.0,0.110652]
[1745291803268,0.0908,87986.0,87985.0,0.110652]
[1745291803859,0.0473,87986.0,87985.0,0.110652]
[1745291805261,0.2393,87986.0,87985.0,0.110652]
[1745291808075,0.194,87986.0,87985.0,0.110652]
[1745291808369,0.0462,87991.0,87990.0,0.113647]
[1745291808571,0.00017051,87994.0,87993.0,0.1136431]
[1745291809175,0.19217051,87994.0,87993.0,0.1136431]
[1745291809358,0.19217051,87994.0,87993.0,0.5181431]
[1745291809781,0.19217051,87994.0,87993.0,0.5161431]
[1745291809965,0.19217051,87994.0,87993.0,0.5624431]
[1745291810482,0.19317051,87994.0,87993.0,0.5634431]
[1745291810971,0.19217051,87994.0,87993.0,0.5634431]
[1745291811760,0.0459,88000.0,87999.0,0.1136353]
[1745291812268,0.192,88000.0,87999.0,0.1136353]
[1745291812660,0.192,88000.0,87999.0,0.2018353]
[1745291813063,0.192,88000.0,87999.0,0.21786142]
[1745291813570,0.192,88000.0,87999.0,0.21686142]
[1745291813763,0.00017051,88008.0,88007.0,0.113625]
[1745291814161,0.19217051,88008.0,88007.0,0.113625]
[1745291814468,0.19217051,88008.0,88007.0,0.21545112]
[1745291815067,0.19217051,88008.0,88007.0,0.200425]
[1745291816268,0.19217051,88008.0,88007.0,0.201425]
[1745291816667,0.44217051,88008.0,87999.0,0.00017051]
[1745291816867,0.474434,88000.0,87999.0,0.11380581]
[1745291817066,0.494434,88000.0,87999.0,0.11380581]
[1745291817266,0.666434,88000.0,87999.0,0.11380581]
[1745291817666,0.753434,88000.0,87999.0,0.11380581]
[1745291819172,0.753434,88000.0,87999.0,0.11480581]
[1745291819670,0.753434,88000.0,87999.0,0.11380581]
[1745291820177,0.754434,88000.0,87999.0,0.11380581]
[1745291821761,0.753434,88000.0,87999.0,0.11380581]
[1745291821967,0.754434,88000.0,87999.0,0.11380581]
[1745291823064,0.753434,88000.0,87999.0,0.11380581]
[1745291823664,0.753434,88000.0,87999.0,0.11480581]
[1745291826370,0.1136495,87988.0,87987.0,0.5312699]
[1745291826567,0.1136495,87988.0,87987.0,0.0569712]
[1745291826975,0.1136495,87988.0,87987.0,0.0568254]
[1745291827181,0.3056495,87988.0,87987.0,0.0569054]
[1745291828963,0.3056495,87988.0,87987.0,0.0579054]
[1745291829374,0.5256495,87988.0,87987.0,0.0579054]
[1745291829571,0.5256495,87988.0,87979.0,0.04407051]
[1745291829572,0.666452,87988.0,87970.0,0.00026572]
[1745291829881,0.3608,87978.0,87977.0,0.1136628]
[1745291830070,0.5528,87978.0,87977.0,0.1136628]
[1745291830264,0.6664625,87978.0,87977.0,0.1136628]
[1745291830666,0.6664625,87978.0,87977.0,0.1137428]
[1745291830980,0.7569625,87978.0,87977.0,0.1137428]
[1745291833083,0.7569625,87978.0,87977.0,0.1157428]
[1745291834879,0.7569625,87978.0,87977.0,0.1582428]
[1745291835080,0.7569625,87978.0,87977.0,0.1562428]
[1745291835282,0.7569625,87978.0,87977.0,0.1572428]
[1745291835678,0.7569625,87978.0,87977.0,0.1562428]
[1745291835879,0.7569625,87978.0,87977.0,0.1582428]
[1745291836276,0.7569625,87978.0,87977.0,0.1572428]
[1745291836483,0.7569625,87978.0,87977.0,0.1582428]
[1745291836784,0.2825,87978.0,87977.0,0.1572428]
[1745291836980,0.192,87978.0,87977.0,0.1572428]
[1745291837283,0.11382291,87986.0,87985.0,0.1136534]
[1745291837783,0.00017051,87986.0,87985.0,0.1136534]
[1745291837980,0.00017051,87986.0,87985.0,0.1563534]
[1745291838169,0.00017051,87986.0,87985.0,0.2837534]
[1745291838375,0.00017051,87986.0,87985.0,0.2437534]
[1745291839281,0.00017051,87986.0,87985.0,0.25379065]
[1745291839679,0.00117051,87986.0,87985.0,0.25379065]
[1745291841274,0.19317051,87986.0,87985.0,0.25379065]
[1745291842475,0.19317051,87986.0,87985.0,0.2437534]
[1745291842682,0.19317051,87986.0,87979.0,0.0568304]
[1745291842683,0.170493,87980.0,87979.0,0.0568296]
[1745291842878,0.170493,87980.0,87977.0,8e-05]
[1745291842879,0.1136625,87978.0,87977.0,0.158762]
[1745291843078,0.6664625,87978.0,87977.0,0.158762]
[1745291843584,0.7113625,87978.0,87977.0,0.158762]
[1745291843780,0.9413625,87978.0,87977.0,0.158762]
[1745291843983,0.8213625,87978.0,87977.0,0.0451]
[1745291844281,0.9413625,87978.0,87977.0,0.1587637]
[1745291844481,0.7113625,87978.0,87977.0,0.1587637]
[1745291844674,0.7113625,87978.0,87977.0,0.1588437]
[1745291844874,0.7113625,87978.0,87977.0,0.1598437]
[1745291845274,0.7113625,87978.0,87977.0,0.1588437]
[1745291845476,0.7113625,87978.0,87977.0,0.1598437]
[1745291848383,0.2369,87978.0,87977.0,0.1598437]
[1745291848589,0.00017051,87986.0,87985.0,0.1136534]
[1745291848779,0.00017051,87986.0,87985.0,0.4744534]
[1745291849183,0.00017051,87986.0,87985.0,0.5605534]
[1745291850486,0.00117051,87986.0,87985.0,0.5605534]
[1745291851180,0.00017051,87986.0,87985.0,0.5605534]
[1745291852687,0.00017051,87986.0,87985.0,0.6742094]
[1745291852891,0.0464,88006.0,87985.0,0.560556]
[1745291853194,0.1600268,88006.0,88005.0,0.1136276]
[1745291853585,0.0927,88006.0,88005.0,0.1136276]
[1745291853892,0.4176049,88019.0,88013.0,0.1704254]
[1745291853893,0.00017051,88014.0,88013.0,0.1704254]
[1745291854284,0.00017051,88014.0,88013.0,0.1664254]
[1745291855087,8e-05,88024.0,88021.0,0.1136069]
[1745291855493,0.3608,88026.0,88021.0,0.1116069]
[1745291856290,8e-05,88029.0,88028.0,0.1135979]
[1745291856592,0.00017041,88030.0,88029.0,0.1135966]
[1745291857187,0.19217041,88030.0,88029.0,0.1135966]
[1745291858090,0.19225041,88030.0,88029.0,0.1135966]
[1745291858285,0.19225041,88030.0,88029.0,0.1155966]
[1745291858793,0.19225041,88030.0,88029.0,0.1185966]
[1745291859291,0.00025041,88030.0,88029.0,0.1185966]
[1745291859493,0.00017041,88030.0,88029.0,0.1185966]
[1745291859688,0.00025041,88030.0,88029.0,0.1185966]
[1745291861490,0.00014581,88043.0,88035.0,0.0567939]
[1745291861692,0.00014581,88043.0,88042.0,0.1135798]
[1745291861990,0.3608,88045.0,88044.0,0.1135773]
[1745291862186,0.192,88045.0,88044.0,0.1135773]
[1745291863181,0.19208,88045.0,88044.0,0.1135773]
[1745291863689,0.19208,88045.0,88044.0,0.1145773]
[1745291865392,0.19208,88045.0,88044.0,0.1607773]
[1745291866893,0.192,88045.0,88044.0,0.1607773]
[1745291867098,0.19208,88045.0,88044.0,0.1607773]
[1745291870498,0.19208,88045.0,88044.0,0.2030773]
[1745291872695,0.19208,88045.0,88044.0,0.2020773]
[1745291873000,0.00526573,88061.0,88049.0,0.0567852]
[1745291873301,0.0432,88060.0,88059.0,0.1135579]
[1745291874087,0.0432,88060.0,88059.0,0.1567579]
[1745291874288,0.2352,88060.0,88059.0,0.1567579]
[1745291874696,0.2352,88060.0,88059.0,0.1587579]
[1745291876503,0.281,88060.0,88059.0,0.1587579]
[1745291878702,0.0426,88067.0,88063.0,0.0567762]
[1745291879006,0.0426,88067.0,88066.0,0.4743489]
[1745291879297,0.2346,88067.0,88066.0,0.4743489]
[1745291879505,0.00010801,88075.0,88071.0,0.1135424]
[1745291880300,0.19579646,88072.0,88071.0,0.1135424]
[1745291880501,0.19579646,88072.0,88071.0,0.12205339]
[1745291880802,0.19579646,88072.0,88071.0,0.1320864]
[1745291880996,0.19587646,88072.0,88071.0,0.14802821]
[1745291882003,0.07104706,88072.0,88071.0,0.14802821]
[1745291882202,0.00010801,88082.0,88081.0,0.1135295]
[1745291882399,0.3608,88085.0,88084.0,0.1135257]
[1745291883200,0.5528,88085.0,88084.0,0.1135257]
[1745291883895,0.5538,88085.0,88084.0,0.1135257]
[1745291885201,0.55388,88085.0,88084.0,0.12863537]
[1745291887199,0.5538,88085.0,88084.0,0.12863537]
[1745291887596,0.55666476,88085.0,88084.0,0.12863537]
[1745291888005,0.19586476,88085.0,88084.0,0.12863537]
[1745291888207,0.1,88100.0,88086.0,0.1135231]
[1745291888597,0.00010801,88095.0,88086.0,0.1135231]
[1745291888798,0.00010801,88095.0,88086.0,0.12863277]
[1745291889204,0.197,88087.0,88086.0,0.12863277]
[1745291889400,0.197,88087.0,88086.0,0.13063277]
[1745291889804,0.00010801,88095.0,88094.0,0.1135128]
[1745291890105,0.19210801,88095.0,88094.0,0.12862247]
[1745291890311,0.192,88095.0,88094.0,0.12862247]
[1745291890698,0.19208,88095.0,88094.0,0.12862247]
[1745291891102,0.19208,88095.0,88094.0,0.12962247]
[1745291892109,0.19208,88095.0,88094.0,0.13162247]
[1745291892708,0.19208,88095.0,88094.0,0.14175966]
[1745291893206,0.19208,88095.0,88094.0,0.13162247]
[1745291893401,0.19208,88095.0,88073.0,0.5676966]
[1745291893402,1.036396,88095.0,88076.0,0.17047201]
[1745291893607,0.5311011,88080.0,88079.0,0.1135254]
[1745291894208,0.7231011,88080.0,88079.0,0.1135254]
[1745291894404,0.6095664,88080.0,88079.0,0.1135254]
[1745291895611,0.6095664,88080.0,88077.0,0.1135347]
[1745291895612,0.1135347,88078.0,88077.0,0.1135347]
[1745291895807,0.1135347,88078.0,88076.0,0.00117031]
[1745291895808,0.1135347,88077.0,88076.0,0.00117031]
[1745291896111,0.1235347,88077.0,88076.0,0.11370631]
[1745291896314,0.3155347,88077.0,88076.0,0.11470631]
[1745291896614,0.3055347,88077.0,88076.0,0.11470631]
[1745291896804,0.3055347,88077.0,88076.0,0.11370631]
[1745291897009,0.4155347,88077.0,88076.0,0.00017031]
[1745291897516,0.4155347,88077.0,88076.0,0.11370631]
[1745291897699,0.302,88077.0,88076.0,0.11370631]
[1745291897904,0.192,88077.0,88076.0,0.11370631]
[1745291898816,0.3055347,88077.0,88076.0,0.11370631]
[1745291899412,0.3055347,88077.0,88076.0,0.11470631]
[1745291900008,0.3055347,88077.0,88076.0,0.11570631]
[1745291900915,0.3155347,88077.0,88076.0,0.11570631]
[1745291901405,0.3055347,88077.0,88076.0,0.11570631]
[1745291901813,0.3055347,88077.0,88076.0,0.11470631]
[1745291902313,0.3055347,88077.0,88076.0,0.11370631]
[1745291902913,0.3155347,88077.0,88076.0,0.11370631]
[1745291903213,0.1056347,88077.0,88076.0,0.11370631]
[1745291904113,0.2976347,88077.0,88076.0,0.11370631]
[1745291904714,0.2876347,88077.0,88076.0,0.11370631]
[1745291905716,0.2876347,88077.0,88076.0,0.11470631]
[1745291906216,0.192,88077.0,88076.0,0.11470631]
[1745291906409,0.192,88077.0,88076.0,0.11570631]
[1745291906917,0.3608,88088.0,88087.0,0.1135218]
[1745291907212,0.5528,88088.0,88087.0,0.1135218]
[1745291908009,0.5528,88088.0,88087.0,0.2006218]
[1745291908308,0.55288,88088.0,88087.0,0.2006218]
[1745291914615,0.19208,88088.0,88087.0,0.2006218]
[1745291916410,0.192,88088.0,88087.0,0.2006218]
[1745291916607,0.19208,88088.0,88087.0,0.2006218]
[1745291918908,0.55288,88088.0,88087.0,0.2006218]
[1745291919822,0.64305268,88088.0,88087.0,0.2006218]
[1745291920408,0.55305268,88088.0,88087.0,0.2006218]
[1745291920612,0.19225268,88088.0,88087.0,0.2006218]
[1745291920810,0.36253708,88088.0,88084.0,0.0567626]
[1745291921014,0.36253708,88088.0,88087.0,0.0452]
[1745291921015,0.70981308,88088.0,88087.0,0.0452]
[1745291921215,0.2270661,88082.0,88081.0,0.1135284]
[1745291921416,0.3270661,88082.0,88081.0,0.1135284]
[1745291921624,0.3370661,88082.0,88081.0,0.1135284]
[1745291922119,0.1135347,88077.0,88076.0,0.17047171]
[1745291923114,0.3055347,88077.0,88076.0,0.17047171]
[1745291923422,0.1135463,88068.0,88067.0,0.0567733]
[1745291923616,0.4743463,88068.0,88067.0,0.0567733]
[1745291924115,0.6663463,88068.0,88067.0,0.0567733]
[1745291924617,0.6663463,88068.0,88067.0,0.0577733]
[1745291924820,0.6663463,88068.0,88067.0,0.0993733]
[1745291925210,0.6663463,88068.0,88067.0,0.0983733]
[1745291925413,0.6663463,88068.0,88067.0,0.0993733]
[1745291925810,0.6663463,88068.0,88067.0,0.0983733]
[1745291926014,0.6663463,88068.0,88067.0,0.0993733]
[1745291927020,0.6663463,88068.0,88067.0,0.1003733]
[1745291928012,0.5528,88068.0,88067.0,0.1003733]
[1745291928212,0.192,88068.0,88067.0,0.1003733]
[1745291928416,0.192,88068.0,88067.0,0.0993733]
[1745291928621,0.192,88068.0,88067.0,0.1003733]
[1745291928918,0.2331257,88084.0,88083.0,0.113527]
[1745291929118,0.4251257,88084.0,88083.0,0.113527]
[1745291929319,0.3489257,88084.0,88083.0,0.113527]
[1745291929824,0.3489257,88084.0,88083.0,0.156027]
[1745291930018,0.3499257,88084.0,88083.0,0.156027]
[1745291930325,0.3509257,88084.0,88083.0,0.156027]
[1745291931319,0.3499257,88084.0,88083.0,0.113527]
[1745291931528,0.4589257,88084.0,88083.0,0.113527]
[1745291931926,0.3489257,88084.0,88083.0,0.113527]
[1745291932721,0.5528,88084.0,88083.0,0.113527]
[1745291932927,0.6663257,88084.0,88083.0,0.156527]
[1745291933323,0.3055257,88084.0,88083.0,0.156527]
[1745291933522,0.3055257,88084.0,88083.0,0.201227]
[1745291934227,0.192,88084.0,88083.0,0.201227]
[1745291935128,0.192,88084.0,88083.0,0.21178551]
[1745291939419,0.192,88084.0,88083.0,0.201227]
[1745291939821,0.3055257,88084.0,88083.0,0.201227]
[1745291940015,0.3499257,88084.0,88083.0,0.201227]
[1745291941523,0.192,88084.0,88083.0,0.201227]
[1745291947127,0.00016997,88085.0,88084.0,0.1135257]
[1745291947333,0.00016997,88085.0,88084.0,0.2086257]
[1745291948225,0.19216997,88085.0,88084.0,0.2086257]
[1745291956536,0.00014581,88103.0,88092.0,0.0567574]
[1745291956833,0.043,88101.0,88099.0,0.1135063]
[1745291957629,0.1477,88100.0,88099.0,0.1597063]
[1745291958037,0.1487,88100.0,88099.0,0.1597063]
[1745291958239,0.3407,88100.0,88099.0,0.1597063]
[1745291959141,0.3397,88100.0,88099.0,0.1597063]
[1745291959342,0.3407,88100.0,88099.0,0.1587063]
[1745291960132,0.3417,88100.0,88099.0,0.1587063]
[1745291965534,0.294,88100.0,88099.0,0.1587063]
[1745291966138,0.00019684,88116.0,88109.0,0.0567462]
[1745291966340,0.0467,88116.0,88111.0,0.3608]
[1745291966538,0.0457,88122.0,88121.0,0.113478]
[1745291966744,0.0457,88122.0,88121.0,0.112478]
[1745291967142,0.2377,88122.0,88121.0,0.112478]
[1745291967341,0.2377,88122.0,88121.0,0.12330024]
[1745291967545,0.23778,88122.0,88121.0,0.12330024]
[1745291968043,0.23778,88122.0,88121.0,0.112478]
[1745291980655,0.33778,88122.0,88121.0,0.112478]
[1745291980952,0.23778,88122.0,88121.0,0.112478]
[1745291982748,0.23778,88122.0,88121.0,0.157078]
[1745291990663,0.33778,88122.0,88121.0,0.157078]
[1745291990859,0.113487,88114.0,88113.0,0.05691371]
[1745291991060,0.425487,88114.0,88113.0,0.05691371]
[1745291991259,0.425487,88114.0,88113.0,0.00017031]
[1745291991462,0.425487,88114.0,88109.0,0.00837725]
[1745291991463,0.1702376,88112.0,88111.0,0.1134903]
[1745291991664,0.1802376,88112.0,88111.0,0.1134903]
[1745291991963,0.2692376,88112.0,88111.0,0.1134903]
[1745291992165,0.4612376,88112.0,88111.0,0.1134903]
[1745291993669,0.3477454,88112.0,88111.0,0.1134903]
[1745291994166,0.3477454,88112.0,88111.0,0.1144903]
[1745291994360,0.3477454,88112.0,88111.0,0.1154903]
[1745291994760,0.3477454,88112.0,88111.0,0.1144903]
[1745291995369,0.3477454,88112.0,88111.0,0.1154903]
[1745291996379,0.3477454,88112.0,88111.0,0.13057343]
[1745291997080,0.3477454,88112.0,88111.0,0.12957343]
[1745291997376,0.3477454,88112.0,88111.0,0.13057343]
[1745292000381,0.19208,88112.0,88111.0,0.17677343]
[1745292000984,0.192,88112.0,88111.0,0.22227343]
[1745292001166,8e-05,88112.0,88111.0,0.22227343]
[1745292003075,0.2135696,88112.0,88111.0,0.06258313]
[1745292003271,0.1134999,88106.0,88105.0,0.1134978]
[1745292003575,0.4742999,88106.0,88105.0,0.1134978]
[1745292003877,0.5658999,88106.0,88105.0,0.1579978]
[1745292004077,0.7578999,88106.0,88105.0,0.1579978]
[1745292004375,0.8678999,88106.0,88105.0,0.1609978]
[1745292005470,0.8678999,88106.0,88105.0,0.1599978]
[1745292005666,0.7678999,88106.0,88105.0,0.1609978]
[1745292006366,0.7678999,88106.0,88105.0,0.2076978]
[1745292006766,0.7678999,88106.0,88105.0,0.2056978]
[1745292006966,0.7678999,88106.0,88105.0,0.2066978]
[1745292007384,0.7678999,88106.0,88105.0,0.2056978]
[1745292007765,0.7678999,88106.0,88105.0,0.2046978]
[1745292008272,0.1134999,88104.0,88103.0,0.00017031]
[1745292008576,0.2134999,88104.0,88103.0,0.00017031]
[1745292008766,0.1134999,88104.0,88103.0,0.00017031]
[1745292009075,0.3536999,88104.0,88103.0,0.00017031]
[1745292009281,0.3536999,88104.0,88103.0,0.11367151]
[1745292009482,0.3976999,88104.0,88103.0,0.11367151]
[1745292010179,0.3976999,88104.0,88103.0,0.15997151]
[1745292010374,0.3976999,88104.0,88103.0,0.16097151]
[1745292010985,0.5076999,88104.0,88103.0,0.15997151]
[1745292011175,0.3976999,88104.0,88103.0,0.11467151]
[1745292011375,0.3976999,88104.0,88103.0,0.11567151]
[1745292011774,0.5076999,88104.0,88103.0,0.11467151]
[1745292011974,0.5076999,88104.0,88103.0,0.11567151]
[1745292012370,0.3976999,88104.0,88103.0,0.11567151]
[1745292013274,0.3976999,88104.0,88103.0,0.11367151]
[1745292013474,0.3976999,88104.0,88103.0,0.11567151]
[1745292013982,0.3976999,88104.0,88103.0,0.11467151]
[1745292014687,0.5076999,88104.0,88103.0,0.11467151]
[1745292014987,0.3976999,88104.0,88103.0,0.11467151]
[1745292016186,0.3976999,88104.0,88103.0,0.16207151]
[1745292017085,0.3976999,88104.0,88103.0,0.16307151]
[1745292017383,0.3494999,88104.0,88103.0,0.16307151]
[1745292019785,0.3494999,88104.0,88103.0,0.16207151]
[1745292019987,0.3494999,88104.0,88103.0,0.16307151]
[1745292022191,0.3494999,88104.0,88103.0,0.16207151]
[1745292022481,0.3494999,88104.0,88103.0,0.16307151]
[1745292023882,0.3494999,88104.0,88103.0,0.16207151]
[1745292024082,0.3494999,88104.0,88103.0,0.16307151]
[1745292025179,0.3494999,88104.0,88103.0,0.16207151]
[1745292025374,0.3494999,88104.0,88103.0,0.16307151]
[1745292025786,0.3794999,88104.0,88103.0,0.00217031]
[1745292025984,0.1135231,88086.0,88082.0,0.0567639]
[1745292026183,0.1135231,88086.0,88085.0,0.33528998]
[1745292026184,0.4743231,88086.0,88085.0,0.33528998]
[1745292026777,0.5685231,88086.0,88085.0,0.33528998]
[1745292027178,0.7605231,88086.0,88085.0,0.33528998]
[1745292027379,0.7605231,88086.0,88085.0,0.28708998]
[1745292027579,0.5528,88086.0,88085.0,0.28708998]
[1745292028077,0.5528,88086.0,88085.0,0.33278998]
[1745292028273,0.6663231,88086.0,88085.0,0.33278998]
[1745292028680,0.5528,88086.0,88085.0,0.33278998]
[1745292029073,0.3608,88086.0,88085.0,0.33278998]
[1745292030082,0.3608,88086.0,88085.0,0.1582244]
[1745292030384,0.3608,88086.0,88085.0,0.1602244]
[1745292031884,8e-05,88090.0,88086.0,0.056761]
[1745292032184,0.4743979,88090.0,88089.0,0.1135192]
[1745292032984,0.1135979,88090.0,88089.0,0.1135192]
[1745292033189,0.3055979,88090.0,88089.0,0.1623192]
[1745292033383,0.3551979,88090.0,88089.0,0.1623192]
[1745292033574,0.3551979,88090.0,88089.0,0.1633192]
[1745292034683,0.3551979,88090.0,88089.0,0.1643192]
[1745292035292,0.3551979,88090.0,88089.0,0.1633192]
[1745292035485,0.3551979,88090.0,88089.0,0.1643192]
[1745292037390,0.19208,88090.0,88089.0,0.1633192]
[1745292037595,0.19208,88090.0,88089.0,0.1643192]
[1745292038093,0.00017031,88094.0,88093.0,0.1135141]
[1745292038283,0.00027832,88094.0,88093.0,0.1135141]
[1745292038483,0.00017031,88094.0,88093.0,0.1135141]
[1745292038683,0.00025031,88094.0,88093.0,0.2090141]
[1745292039295,0.19225031,88094.0,88093.0,0.2100141]
[1745292040297,0.28225031,88094.0,88093.0,0.2100141]
[1745292040687,0.28225031,88094.0,88093.0,0.2110141]
[1745292041094,0.33035031,88094.0,88093.0,0.2110141]
[1745292041293,0.24035031,88094.0,88093.0,0.2110141]
[1745292043593,0.35386311,88094.0,88093.0,0.2110141]
[1745292044297,0.40566311,88094.0,88093.0,0.2110141]
[1745292044688,0.29215031,88094.0,88093.0,0.2110141]
[1745292045699,0.38215031,88094.0,88093.0,0.1632141]
[1745292045900,0.50566311,88094.0,88093.0,0.002]
[1745292046594,0.40566311,88094.0,88093.0,0.002]
[1745292046897,0.49566311,88094.0,88093.0,0.002]
[1745292047293,0.60917911,88094.0,88093.0,0.001]
[1745292047501,0.1135167,88091.0,88090.0,0.1135177]
[1745292047692,0.5743167,88091.0,88090.0,0.1135177]
[1745292048192,0.7663167,88091.0,88090.0,0.1135177]
[1745292049294,0.8423167,88091.0,88090.0,0.1135177]
[1745292055896,0.7423167,88091.0,88090.0,0.1135177]
[1745292056103,0.7423967,88091.0,88090.0,0.1135177]
[1745292056292,0.7423967,88091.0,88090.0,0.1640177]
[1745292057091,0.7423967,88091.0,88090.0,0.1650177]
[1745292057292,0.7423967,88091.0,88090.0,0.1660177]
[1745292057690,0.7423967,88091.0,88090.0,0.18101386]
[1745292057889,0.3815967,88091.0,88090.0,0.18101386]
[1745292058199,0.7423967,88091.0,88090.0,0.18101386]
[1745292058700,0.7423967,88091.0,88090.0,0.1660177]
[1745292061105,0.7423167,88091.0,88090.0,0.1660177]
[1745292061807,0.7423967,88091.0,88090.0,0.1660177]
[1745292065009,0.8423967,88091.0,88090.0,0.1660177]
[1745292065204,0.7423967,88091.0,88090.0,0.1660179]
[1745292065404,0.8523967,88091.0,88090.0,0.1660179]
[1745292066402,0.8523967,88091.0,88090.0,0.1640179]
[1745292066608,0.8523967,88091.0,88090.0,0.1660179]
[1745292067514,0.8523967,88091.0,88090.0,0.1650179]
[1745292067711,0.8523967,88091.0,88090.0,0.1640179]
[1745292069108,0.8523967,88091.0,88090.0,0.0505]
[1745292069306,0.8523967,88091.0,88090.0,0.1640179]
[1745292070902,0.7763967,88091.0,88090.0,0.1640179]
[1745292071304,0.6663967,88091.0,88090.0,0.1640179]
[1745292071509,0.5528,88091.0,88090.0,0.1640179]
[1745292071709,0.55288,88091.0,88090.0,0.1640179]
[1745292071903,0.55288,88091.0,88090.0,0.1793439]
[1745292072211,0.36088,88091.0,88090.0,0.1793439]
[1745292072407,0.3608,88091.0,88090.0,0.1793439]
[1745292072609,0.36088,88091.0,88090.0,0.1793439]
[1745292073505,0.36088,88091.0,88090.0,0.1813439]
[1745292074708,0.36088,88091.0,88090.0,0.1660179]
[1745292075209,0.55288,88091.0,88090.0,0.1660179]
[1745292077011,0.6663967,88091.0,88090.0,0.1660179]
[1745292077209,0.5843967,88091.0,88090.0,0.1660179]
[1745292077810,0.4743967,88091.0,88090.0,0.1660179]
[1745292078112,0.55288,88091.0,88090.0,0.1660179]
[1745292078817,0.55288,88091.0,88090.0,0.1814057]
[1745292079014,0.55288,88091.0,88090.0,0.1660179]
[1745292079218,0.36088,88091.0,88090.0,0.1660179]
[1745292079414,0.3608,88091.0,88090.0,0.1660179]
[1745292079608,0.36088,88091.0,88090.0,0.1660179]
[1745292080910,0.00017031,88094.0,88093.0,0.1135141]
[1745292081112,0.19217031,88094.0,88093.0,0.1135141]
[1745292081810,0.30217031,88094.0,88093.0,0.2152141]
[1745292082320,0.30217031,88094.0,88093.0,0.2162141]
[1745292082520,0.30217031,88094.0,88093.0,0.2172141]
[1745292082710,0.35237031,88094.0,88093.0,0.2172141]
[1745292082911,0.40367031,88094.0,88093.0,0.2172141]
[1745292084417,0.51718311,88094.0,88093.0,0.1654141]
[1745292084916,0.1135245,88087.0,88086.0,0.1702845]
[1745292085108,0.3055245,88087.0,88086.0,0.1702845]
[1745292085823,0.3955245,88087.0,88086.0,0.1702845]
[1745292086021,0.3955245,88087.0,88086.0,0.1712845]
[1745292086420,0.3055245,88087.0,88086.0,0.1712845]
[1745292086611,0.4663245,88087.0,88086.0,0.1712845]
[1745292086812,0.4663245,88087.0,88086.0,0.1722845]
[1745292087217,0.3563245,88087.0,88086.0,0.1722845]
[1745292087522,0.4463245,88087.0,88086.0,0.1712845]
[1745292088727,0.4663245,88087.0,88086.0,0.1712845]
[1745292089128,0.3563245,88087.0,88086.0,0.1712845]
[1745292089430,0.3563245,88087.0,88086.0,0.1702845]
[1745292089727,0.4663245,88087.0,88086.0,0.1702845]
[1745292090319,0.4663245,88087.0,88086.0,0.1135231]
[1745292090320,0.5798489,88087.0,88086.0,0.1135231]
[1745292090516,0.3563245,88087.0,88086.0,0.1135231]
[1745292091123,0.3563245,88087.0,88086.0,0.1145231]
[1745292091526,0.3563245,88087.0,88086.0,0.1135231]
[1745292091730,0.2487617,88087.0,88086.0,0.1145231]
[1745292091929,0.192,88087.0,88086.0,0.1145231]
[1745292092332,0.3055218,88087.0,88086.0,0.1623231]
[1745292092630,0.3546218,88087.0,88086.0,0.1633231]
[1745292093225,0.3546218,88087.0,88086.0,0.1155231]
[1745292093626,0.4446218,88087.0,88086.0,0.1155231]
[1745292094336,0.4446218,88087.0,88086.0,0.1145231]
[1745292095035,0.3546218,88087.0,88086.0,0.1145231]
[1745292095233,0.4646218,88087.0,88086.0,0.1145231]
[1745292095639,0.4646218,88087.0,88086.0,0.1135231]
[1745292096534,0.3546218,88087.0,88086.0,0.1135231]
[1745292098241,0.4646218,88087.0,88086.0,0.1135231]